Workbook

Sheet Лист1
P3: =SUM(K13) -> 0.9982394366
D4: А | E4: =INDEX($X$11:$X$30,SMALL(IF($X$11:$X$30>0,ROW($A$1:$A$20)),ROW(A1))) -> 30
D5: Б | E5: =INDEX($X$11:$X$30,SMALL(IF($X$11:$X$30>0,ROW($A$1:$A$20)),ROW(A2))) -> 71
D6: В | E6: =INDEX($X$11:$X$30,SMALL(IF($X$11:$X$30>0,ROW($A$1:$A$20)),ROW(A3))) -> 84
D7: Г | E7: =INDEX($X$11:$X$30,SMALL(IF($X$11:$X$30>0,ROW($A$1:$A$20)),ROW(A4))) -> 100 | V7: Искомый результат
D8: Шаг вала | E8: 6
B9: Шестерни | D9: Прямая подача | F9: =E8*N9 -> 2.129577465 | M9: Jcm | N9: =(E4*E6)/(E5*E7) -> 0.3549295775 | V9: 2
B10: в наличии | M10: передаточные | W10: переменные
E11: Резьбы | V11: =SUMPRODUCT(--(ROUND(E13:K15,2)=V9)) -> 1 | W11: 0 | X11: =B11*W11 -> 0
B12: 30 | E12: 1 | F12: 2 | G12: 3 | H12: 4 | I12: 5 | J12: 6 | K12: 7 | N12: 1 | O12: 2 | P12: 3 | Q12: 4 | R12: 5 | S12: 6 | T12: 7 | W12: 1 | X12: =B12*W12 -> 30
D13: I | E13: =$N$9*N13*$E$8 -> 0.5323943662 | F13: =$N$9*O13*$E$8 -> 0.598943662 | G13: 0.6654929577 | H13: 0.7320422535 | I13: 0.7985915493 | J13: 0.9316901408 | K13: 0.9982394366 | M13: I | N13: 0.25 | O13: 0.28125 | P13: 0.3125 | Q13: 0.34375 | R13: 0.375 | S13: 0.4375 | T13: 0.46875 | W13: 1 | X13: 0
D14: II | E14: =$N$9*N14*$E$8 -> 1.064788732 | F14: 1.197887324 | G14: 1.330985915 | H14: 1.464084507 | I14: 1.597183099 | J14: 1.863380282 | K14: 1.996478873 | M14: II | N14: =N13*2 -> 0.5 | O14: =O13*2 -> 0.5625 | P14: 0.625 | Q14: 0.6875 | R14: 0.75 | S14: 0.875 | T14: 0.9375 | W14: 1 | X14: 0
D15: III | E15: 2.129577465 | F15: 2.395774648 | G15: 2.661971831 | H15: 2.928169014 | I15: 3.194366197 | J15: 3.726760563 | K15: 3.992957746 | M15: III | N15: =N13*4 -> 1 | O15: =O13*4 -> 1.125 | P15: 1.25 | Q15: 1.375 | R15: 1.5 | S15: 1.75 | T15: 1.875 | W15: 0 | X15: 0
W16: 0 | X16: 0
W17: 0 | X17: 0
B18: 60 | E18: Подачи продольные | W18: 0 | X18: 0
E19: 1 | F19: 2 | G19: 3 | H19: 4 | I19: 5 | J19: 6 | K19: 7 | N19: 1 | O19: 2 | P19: 3 | Q19: 4 | R19: 5 | S19: 6 | T19: 7 | W19: 1 | X19: 0
B20: 71 | D20: I | E20: =$N$9*$E$8*N20 -> 0.1064788732 | F20: 0.1197887324 | G20: 0.1330985915 | H20: 0.1464084507 | I20: 0.1597183099 | J20: 0.1863380282 | K20: 0.1996478873 | M20: I | N20: =N13*0.2 -> 0.05 | O20: =O13*0.2 -> 0.05625 | P20: 0.0625 | Q20: 0.06875 | R20: 0.075 | S20: 0.0875 | T20: 0.09375 | W20: 1 | X20: 71
B21: 84 | D21: II | E21: 0.2129577465 | F21: 0.2395774648 | G21: 0.2661971831 | H21: 0.2928169014 | I21: 0.3194366197 | J21: 0.3726760563 | K21: 0.3992957746 | M21: II | N21: =N20*2 -> 0.1 | O21: =O20*2 -> 0.1125 | P21: =P20*2 -> 0.125 | Q21: =Q20*2 -> 0.1375 | R21: =R20*2 -> 0.15 | S21: =S20*2 -> 0.175 | T21: =T20*2 -> 0.1875 | W21: 1 | X21: 84
D22: III | E22: 0.425915493 | F22: 0.4791549296 | G22: 0.5323943662 | H22: 0.5856338028 | I22: 0.6388732394 | J22: 0.7453521127 | K22: 0.7985915493 | M22: III | N22: =N20*4 -> 0.2 | O22: =O20*4 -> 0.225 | P22: 0.25 | Q22: 0.275 | R22: 0.3 | S22: 0.35 | T22: 0.375 | W22: 1 | X22: 0
W23: 1 | X23: 0
B24: 100 | W24: 1 | X24: 100
B25: 105 | E25: Подачи поперечные | W25: 0 | X25: 0
E26: 1 | F26: 2 | G26: 3 | H26: 4 | I26: 5 | J26: 6 | K26: 7 | N26: 1 | O26: 2 | P26: 3 | Q26: 4 | R26: 5 | S26: 6 | T26: 7 | W26: 1 | X26: 0
B27: 113 | D27: I | E27: =$N$9*$E$8*N27 -> 0.03194366197 | F27: 0.03593661972 | G27: 0.03992957746 | H27: 0.04392253521 | I27: 0.04791549296 | J27: 0.05590140845 | K27: 0.0598943662 | M27: I | N27: =N13*0.06 -> 0.015 | O27: =O13*0.06 -> 0.016875 | P27: 0.01875 | Q27: 0.020625 | R27: 0.0225 | S27: 0.02625 | T27: 0.028125 | W27: 0 | X27: 0
D28: II | E28: 0.06388732394 | F28: 0.07187323944 | G28: 0.07985915493 | H28: 0.08784507042 | I28: 0.09583098592 | J28: 0.1118028169 | K28: 0.1197887324 | M28: II | N28: =N27*2 -> 0.03 | O28: =O27*2 -> 0.03375 | P28: =P27*2 -> 0.0375 | Q28: =Q27*2 -> 0.04125 | R28: =R27*2 -> 0.045 | S28: =S27*2 -> 0.0525 | T28: =T27*2 -> 0.05625 | W28: 0 | X28: 0
D29: III | E29: 0.1277746479 | F29: 0.1437464789 | G29: 0.1597183099 | H29: 0.1756901408 | I29: 0.1916619718 | J29: 0.2236056338 | K29: 0.2395774648 | M29: III | N29: =N27*4 -> 0.06 | O29: =O27*4 -> 0.0675 | P29: 0.075 | Q29: 0.0825 | R29: 0.09 | S29: 0.105 | T29: 0.1125 | W29: 0 | X29: 0
W30: 0 | X30: 0
X31: =COUNTIF(X11:X30,">0") -> 4

Sheet Лист2

Sheet Лист3
